bitfinex/quotes_BTCUSD_20250723
["timestamp","ask_amount","ask_price","bid_price","bid_amount"]
[1753277946045,1.42066434,118140.0,118130.0,0.10428]
[1753277946280,1.42066434,118140.0,118130.0,0.14396]
[1753277946501,1.42066434,118140.0,118130.0,0.11066]
[1753277946733,0.17783032,118090.0,118080.0,0.20310754]
[1753277946950,0.17783032,118090.0,118080.0,0.28758484]
[1753277946951,0.24342032,118090.0,118080.0,0.28758484]
[1753277947184,0.24580032,118090.0,118080.0,0.43154484]
[1753277947399,0.24580032,118090.0,118080.0,0.37250454]
[1753277947610,0.24580032,118090.0,118080.0,0.23702454]
[1753277948031,0.24580032,118090.0,118080.0,0.23751718]
[1753277948249,0.32307742,118090.0,118080.0,0.23851718]
[1753277948711,0.32307742,118090.0,118080.0,0.23751718]
[1753277949133,0.24342032,118090.0,118080.0,0.41536256]
[1753277949347,0.24342032,118090.0,118080.0,0.44974859]
[1753277949348,0.25188807,118090.0,118080.0,0.44974859]
[1753277949561,0.25188843,118090.0,118080.0,0.42434289]
[1753277949804,0.22995618,118090.0,118080.0,0.44974866]
[1753277950025,0.20522351,118090.0,118080.0,0.52784749]
[1753277950237,0.02654631,118090.0,118080.0,0.52784749]
[1753277950451,0.02654631,118090.0,118080.0,0.53934582]
[1753277950660,0.01693529,118090.0,118080.0,0.53934582]
[1753277951097,0.02540326,118090.0,118080.0,0.53934582]
[1753277951528,0.01693522,118090.0,118080.0,0.53934582]
[1753277951741,0.03387102,118090.0,118080.0,0.53934582]
[1753277951955,0.02540305,118090.0,118080.0,0.53934582]
[1753277952169,0.20323344,118090.0,118080.0,0.53934589]
[1753277952408,0.01693522,118090.0,118080.0,0.54781422]
[1753277952629,0.03387094,118090.0,118080.0,0.54781422]
[1753277953069,0.02540297,118090.0,118080.0,0.40385422]
[1753277953286,0.20802795,118100.0,118090.0,0.22068267]
[1753277953287,0.00846675,118100.0,118090.0,0.22068267]
[1753277953502,0.01693271,118110.0,118100.0,0.22066561]
[1753277953725,0.21166542,118110.0,118100.0,0.43429891]
[1753277953950,0.06659096,118110.0,118100.0,0.43732891]
[1753277954163,0.06773096,118110.0,118100.0,0.42886173]
[1753277954383,0.23706484,118110.0,118100.0,0.24801632]
[1753277954602,0.22859852,118110.0,118100.0,0.24592632]
[1753277955024,0.28879852,118110.0,118100.0,0.10192632]
[1753277955195,0.00846747,118090.0,118080.0,0.27987053]
[1753277955426,0.01693501,118090.0,118080.0,0.53938546]
[1753277955633,0.01693429,118100.0,118090.0,0.21221506]
[1753277955816,0.27372552,118110.0,118100.0,0.18628259]
[1753277956017,0.003,118110.0,118100.0,0.36978554]
[1753277956273,0.00846603,118110.0,118100.0,0.87103261]
[1753277956502,0.00846603,118110.0,118100.0,0.89646561]
[1753277956503,0.01693228,118110.0,118100.0,0.89646561]
[1753277956717,0.21688477,118120.0,118110.0,0.01744902]
[1753277956922,0.24802477,118120.0,118110.0,0.01744902]
[1753277957127,0.32976331,118120.0,118110.0,0.01744902]
[1753277957340,0.23840021,118110.0,118100.0,0.18688202]
[1753277957547,0.23955021,118110.0,118100.0,0.04288202]
[1753277957760,0.23955021,118110.0,118100.0,0.18688202]
[1753277958171,0.24109021,118110.0,118100.0,0.18688202]
[1753277958387,0.60170027,118110.0,118100.0,0.025433]
[1753277958585,0.24829807,118090.0,118080.0,0.00049264]
[1753277958801,0.24944807,118090.0,118080.0,0.16993164]
[1753277960686,0.60859813,118090.0,118080.0,0.00049264]
[1753277960918,0.69307543,118090.0,118080.0,0.14449264]
[1753277962198,0.69507543,118090.0,118080.0,0.14449264]
[1753277962903,1.03507543,118090.0,118080.0,0.00049264]
[1753277963118,1.03507543,118090.0,118080.0,0.14453264]
[1753277965120,0.25192962,118070.0,118060.0,0.06762754]
[1753277965319,0.68376159,118070.0,118060.0,0.21177517]
[1753277965535,0.72760153,118070.0,118060.0,0.21177517]
[1753277966441,0.72960153,118070.0,118060.0,0.21177517]
[1753277967770,0.72960153,118070.0,118060.0,0.06777517]
[1753277967992,1.08721159,118070.0,118060.0,0.21177517]
[1753277968203,1.08721159,118070.0,118060.0,0.00014763]
[1753277968417,1.10294526,118070.0,118060.0,0.14414763]
[1753277968624,0.70294526,118070.0,118060.0,0.14414763]
[1753277969079,0.70294605,118070.0,118060.0,0.14414763]
[1753277969308,1.10294605,118070.0,118060.0,0.14414763]
[1753277969513,0.70294605,118070.0,118060.0,0.14414763]
[1753277969720,0.70294605,118070.0,118060.0,0.00014763]
[1753277969926,0.70294605,118070.0,118060.0,0.14414763]
[1753277970785,0.34533599,118070.0,118060.0,0.14414763]
[1753277970985,0.70294605,118070.0,118060.0,0.14414763]
[1753277971477,1.10294605,118070.0,118060.0,0.14414763]
[1753277971703,1.10296813,118070.0,118060.0,0.00014763]
[1753277971928,1.10296813,118070.0,118060.0,0.14414763]
[1753277972142,1.10296813,118070.0,118060.0,0.00014763]
[1753277972353,0.67177616,118070.0,118060.0,0.14414763]
[1753277973209,0.27177616,118070.0,118060.0,0.14414763]
[1753277973430,0.61507968,118070.0,118060.0,0.00014763]
[1753277973639,0.63085468,118070.0,118060.0,0.14414763]
[1753277974509,0.27324462,118070.0,118060.0,0.14414763]
[1753277974729,0.70511809,118070.0,118060.0,0.14414763]
[1753277974992,0.34750803,118070.0,118060.0,0.14414763]
[1753277975236,0.70511809,118070.0,118060.0,0.14414763]
[1753277975721,1.42359539,118070.0,118060.0,0.00014763]
[1753277975934,0.92198533,118070.0,118060.0,0.00014763]
[1753277976151,1.27959539,118070.0,118060.0,0.00014763]
[1753277976566,1.27961221,118070.0,118060.0,0.00014763]
[1753277976795,1.27761221,118070.0,118060.0,0.00014763]
[1753277977000,1.27961221,118070.0,118060.0,0.00014763]
[1753277977434,0.92200215,118070.0,118060.0,0.00014763]
[1753277977644,1.27961221,118070.0,118060.0,0.00014763]
[1753277977889,1.27961221,118070.0,118060.0,1e-08]
[1753277978113,1.28061221,118070.0,118060.0,1e-08]
[1753277978325,1.33061221,118070.0,118060.0,1e-08]
[1753277978753,1.32861221,118070.0,118060.0,1e-08]
[1753277978970,1.47161221,118070.0,118060.0,1e-08]
[1753277979441,1.47461221,118070.0,118060.0,1e-08]
[1753277979662,1.47761221,118070.0,118060.0,1e-08]
[1753277980703,1.12000215,118070.0,118060.0,1e-08]
[1753277980926,1.47761221,118070.0,118060.0,1e-08]
[1753277982928,0.97636119,118050.0,118040.0,1e-08]
[1753277983192,1.72641767,118050.0,118040.0,1e-08]
[1753277983457,1.72794767,118050.0,118040.0,1e-08]
[1753277983933,1.37033761,118050.0,118040.0,1e-08]
[1753277984168,1.72794767,118050.0,118040.0,1e-08]
[1753277985370,2.08655773,118050.0,118040.0,1e-08]
[1753277985583,0.18642436,118010.0,118000.0,0.09609254]
[1753277985796,0.22085862,118010.0,118000.0,0.24214254]
[1753277986049,0.04290754,118010.0,118000.0,0.43705734]
[1753277986297,0.04290761,118010.0,118000.0,0.47603141]
[1753277986542,0.02426503,118010.0,118000.0,0.61085773]
[1753277986780,0.20221626,118010.0,118000.0,0.40746886]
[1753277987004,0.20221626,118010.0,118000.0,0.12879026]
[1753277987229,0.42714519,118010.0,118000.0,0.24225026]
[1753277987439,0.42514519,118010.0,118000.0,0.24225026]
[1753277987875,0.42514519,118010.0,118000.0,0.24525026]
[1753277988083,0.41667162,118010.0,118000.0,0.24525026]
[1753277988332,0.25540345,118010.0,118000.0,0.46259042]
[1753277988544,0.04094801,118010.0,118000.0,0.50386456]
[1753277988750,0.2273723,118010.0,118000.0,0.49739049]
[1753277988960,0.21042553,118010.0,118000.0,0.48044178]
[1753277989157,0.21042553,118010.0,118000.0,0.48891635]
[1753277989158,0.24841438,118010.0,118000.0,0.48891635]
[1753277989375,0.24841438,118010.0,118000.0,0.50586528]
[1753277989579,0.24841438,118010.0,118000.0,0.51433964]
[1753277989790,0.01579182,118010.0,118000.0,0.52281378]
[1753277990006,0.03273838,118010.0,118000.0,0.6247396]
[1753277990420,0.04121187,118010.0,118000.0,0.6247396]
[1753277990631,0.04968551,118010.0,118000.0,0.6247396]
[1753277990846,0.05815929,118010.0,118000.0,0.6247396]
[1753277991051,0.04968551,118010.0,118000.0,0.6247396]
[1753277991268,0.05815979,118010.0,118000.0,0.6247396]
[1753277991475,0.05815979,118010.0,118000.0,0.06656272]
[1753277991476,0.27231003,118010.0,118000.0,0.06656272]
[1753277991647,0.27231003,118010.0,118000.0,0.21052272]
[1753277993102,0.27231003,118010.0,118000.0,0.17962272]
[1753277995068,0.20192148,118010.0,118000.0,0.45561635]
[1753277995281,0.20192148,118010.0,118000.0,0.27765026]
[1753277996231,0.20192148,118010.0,118000.0,0.13369026]
[1753277996441,0.20192148,118010.0,118000.0,0.45561628]
[1753277996650,0.04121237,118010.0,118000.0,0.50576463]
[1753277996828,0.29630182,118010.0,118000.0,0.50576463]
[1753277997244,0.27935498,118010.0,118000.0,0.48881628]
[1753277997646,0.27088127,118010.0,118000.0,0.16689026]
[1753277997848,0.27088127,118010.0,118000.0,0.48881628]
[1753277998682,0.27088127,118010.0,118000.0,0.49729071]
[1753277999735,0.27088127,118010.0,118000.0,0.31085026]
[1753277999939,0.27088127,118010.0,118000.0,0.24725026]
[1753278000143,0.27088127,118010.0,118000.0,0.17962272]
[1753278000398,0.02426503,118010.0,118000.0,0.49879071]
[1753278000611,0.01254182,118010.0,118000.0,1.5289255]
[1753278000854,0.00434182,118010.0,118000.0,1.9717455]
[1753278001020,0.16941807,118060.0,118050.0,0.20859064]
[1753278001021,0.17787546,118060.0,118050.0,0.20859064]
[1753278001237,0.19481553,118060.0,118050.0,0.39218141]
[1753278001382,0.19481588,118060.0,118050.0,0.38371057]
[1753278001583,0.19481588,118060.0,118050.0,0.20582]
[1753278001829,0.18634583,118060.0,118050.0,0.20582]
[1753278002036,0.17787564,118060.0,118050.0,0.20582]
[1753278002256,0.17787564,118060.0,118050.0,0.37523973]
[1753278002443,0.17787564,118060.0,118050.0,0.40915571]
[1753278002600,0.18294564,118060.0,118050.0,0.025445]
[1753278002813,0.18294564,118060.0,118050.0,0.170365]
[1753278003429,0.18294564,118060.0,118050.0,0.026445]
[1753278003640,0.82748459,118060.0,118050.0,0.026445]
[1753278003839,0.82748459,118060.0,118050.0,0.170325]
[1753278004039,0.79508459,118060.0,118050.0,0.170325]
[1753278004240,0.48294564,118060.0,118050.0,0.170325]
[1753278004443,0.48394564,118060.0,118050.0,0.170325]
[1753278004644,0.54454564,118060.0,118050.0,0.170325]
[1753278005089,0.94454564,118060.0,118050.0,0.170325]
[1753278005509,0.91444564,118060.0,118050.0,0.170325]
[1753278006526,0.99892294,118060.0,118050.0,0.170325]
[1753278006726,1.02972294,118060.0,118050.0,0.170325]
[1753278006951,0.62972294,118060.0,118050.0,0.026445]
[1753278007181,0.987333,118060.0,118050.0,0.170325]
[1753278008583,1.0718103,118060.0,118050.0,0.14484]
[1753278008792,0.71420024,118060.0,118050.0,0.14484]
[1753278008996,0.65290024,118060.0,118050.0,0.14484]
[1753278009689,0.71420024,118060.0,118050.0,0.14484]
[1753278009905,0.71420024,118060.0,118050.0,0.14384]
[1753278010106,0.71520024,118060.0,118050.0,0.14384]
[1753278010311,0.63272294,118060.0,118050.0,0.14384]
[1753278010717,0.54824564,118060.0,118050.0,0.14384]
[1753278010929,0.48594564,118060.0,118050.0,0.14384]
[1753278011343,0.18594564,118060.0,118050.0,0.14384]
[1753278012921,0.20177712,118060.0,118050.0,0.14384]
[1753278013581,0.17789057,118050.0,118040.0,0.09307854]
[1753278013786,0.17789057,118050.0,118040.0,0.23687854]
[1753278013994,0.18101057,118050.0,118040.0,0.23687854]
[1753278014210,0.18296057,118050.0,118040.0,0.23687854]
[1753278014429,0.18296057,118050.0,118040.0,0.09307854]
[1753278014639,0.25925976,118050.0,118040.0,0.09307854]
[1753278014851,0.25925976,118050.0,118040.0,0.23687854]
[1753278015271,0.18296057,118050.0,118040.0,0.23687854]
[1753278016348,0.18296057,118050.0,118040.0,0.09307854]
[1753278016559,0.18296057,118050.0,118040.0,0.169251]
[1753278016777,0.39796057,118050.0,118040.0,0.169251]
[1753278016998,0.33296057,118050.0,118040.0,0.169251]
[1753278017700,0.33596057,118050.0,118040.0,0.169251]
[1753278018130,0.18639277,118030.0,118020.0,0.09782754]
[1753278018339,0.18639277,118030.0,118020.0,0.27298754]
[1753278018573,0.18639277,118030.0,118020.0,0.45092348]
[1753278018789,0.18639277,118030.0,118020.0,0.29843854]
[1753278019005,0.18639277,118030.0,118020.0,0.49332039]
[1753278019214,0.00847184,118030.0,118020.0,0.59524678]
[1753278019425,0.03388815,118030.0,118020.0,0.61219226]
[1753278019640,0.21180901,118030.0,118020.0,0.60371963]
[1753278019879,0.19486526,118030.0,118020.0,0.58677386]
[1753278020101,0.19486526,118030.0,118020.0,0.45995977]
[1753278020305,0.19486526,118030.0,118020.0,0.60471977]
[1753278020716,0.1863897,118040.0,118030.0,0.27481414]
[1753278020935,0.00847105,118040.0,118030.0,0.36776335]
[1753278021111,0.18636104,118050.0,118040.0,0.27479756]
[1753278021316,0.19483188,118050.0,118040.0,0.503035]
[1753278021522,0.20330279,118050.0,118040.0,0.50303486]
[1753278021722,0.18636148,118050.0,118040.0,0.34210402]
[1753278021954,0.19139755,118050.0,118040.0,0.169206]
[1753278022248,0.18632755,118050.0,118040.0,0.200606]
[1753278023084,0.18632755,118050.0,118040.0,0.089146]
[1753278023290,0.18632755,118050.0,118040.0,0.232866]
[1753278023871,0.18832755,118050.0,118040.0,0.232866]
[1753278024045,0.18932755,118050.0,118040.0,0.232866]
[1753278024550,0.58932755,118050.0,118040.0,0.232866]
[1753278025530,0.58932755,118050.0,118040.0,0.41077179]
[1753278025761,0.58932755,118050.0,118040.0,0.232866]
[1753278028530,0.67069284,118050.0,118040.0,0.025446]
[1753278028760,1.0283029,118050.0,118040.0,0.169126]
[1753278028952,1.0900029,118050.0,118040.0,0.169126]
[1753278029172,0.73239284,118050.0,118040.0,0.169126]
[1753278030156,0.70129284,118050.0,118040.0,0.169126]
[1753278030401,1.01581761,118050.0,118040.0,0.025446]
[1753278030628,0.19489786,118010.0,118000.0,0.56612754]
[1753278030804,0.18642451,118010.0,118000.0,0.35170484]
[1753278031049,0.19160451,118010.0,118000.0,0.34701526]
[1753278031472,0.22771253,118010.0,118000.0,0.34701526]
[1753278031680,0.19160451,118010.0,118000.0,0.37247026]
[1753278032100,0.19260451,118010.0,118000.0,0.37847026]
[1753278032314,0.19260451,118010.0,118000.0,0.24287026]
[1753278032508,0.19260451,118010.0,118000.0,0.03160272]
[1753278032770,0.8369836,118010.0,118000.0,0.03160272]
[1753278032994,0.9869836,118010.0,118000.0,0.14978772]
[1753278033207,1.4114609,118010.0,118000.0,0.14978772]
[1753278034283,1.4114609,118010.0,118000.0,0.15478772]
[1753278034707,1.40866441,118010.0,118000.0,0.14878772]
[1753278034934,1.40866441,118010.0,118000.0,0.14378772]
[1753278035142,1.40966441,118010.0,118000.0,0.14878772]
[1753278035360,1.05105435,118010.0,118000.0,0.14378772]
[1753278035577,0.82980802,118010.0,118000.0,0.14378772]
[1753278036897,1.25021808,118010.0,118000.0,0.14378772]
[1753278037562,1.33469538,118010.0,118000.0,0.14374772]
[1753278037782,1.06156262,118010.0,118000.0,0.14374772]
[1753278037987,1.41917268,118010.0,118000.0,0.14374772]
[1753278038222,1.41917268,118010.0,118000.0,0.00014772]
[1753278038436,1.41917268,118010.0,118000.0,0.14374772]
[1753278039125,1.42117268,118010.0,118000.0,0.00014772]
[1753278039341,1.06356262,118010.0,118000.0,0.14374772]
[1753278039556,1.06456262,118010.0,118000.0,0.14374772]
[1753278039768,1.42217268,118010.0,118000.0,0.14374772]
[1753278039974,1.33769538,118010.0,118000.0,0.14374772]
[1753278040231,0.98008532,118010.0,118000.0,0.00014772]
[1753278040432,0.98008532,118010.0,118000.0,0.14374772]
[1753278040868,0.91728532,118010.0,118000.0,0.14374772]
[1753278041089,0.96375378,118010.0,118000.0,0.14374772]
[1753278041298,0.99585378,118010.0,118000.0,0.14374772]
[1753278041523,1.02655378,118010.0,118000.0,0.14374772]
[1753278042136,1.38416384,118010.0,118000.0,0.14374772]
[1753278042708,1.38416384,118010.0,118000.0,0.00014772]
[1753278043114,1.53416384,118010.0,118000.0,0.00014772]
[1753278043320,1.73416384,118010.0,118000.0,0.00014772]
[1753278043520,1.73416384,118010.0,118000.0,1e-08]
[1753278044954,2.2353339,118010.0,118000.0,1e-08]
[1753278045167,2.2853339,118010.0,118000.0,1e-08]
[1753278045400,1.92772384,118010.0,118000.0,1e-08]
[1753278045834,0.90065597,117990.0,117980.0,1e-08]
[1753278046041,1.57272063,117990.0,117980.0,1e-08]
[1753278046252,1.57592063,117990.0,117980.0,1e-08]
[1753278046668,1.91592063,117990.0,117980.0,1e-08]
[1753278046893,0.29219611,117980.0,117970.0,1e-08]
[1753278047107,1.21450761,117980.0,117960.0,1e-08]
[1753278047326,1.47801856,117970.0,117960.0,1e-08]
[1753278047541,1.1223885,117970.0,117960.0,1e-08]
[1753278050128,1.48399856,117970.0,117960.0,0.00100001]
[1753278050769,1.48699856,117970.0,117960.0,0.00100001]
[1753278051401,1.34347856,117970.0,117960.0,0.00100001]
[1753278051630,1.57147586,117970.0,117960.0,0.00100001]
[1753278051833,0.8703458,117970.0,117960.0,0.00100001]
[1753278052041,0.8091458,117970.0,117960.0,0.00100001]
[1753278052673,1.22935586,117970.0,117960.0,0.00100001]
[1753278053304,1.25632198,117970.0,117960.0,0.00100001]
[1753278053485,0.8717458,117970.0,117960.0,0.00100001]
[1753278053730,1.0152258,117970.0,117960.0,0.00100001]
[1753278054158,1.37283586,117970.0,117960.0,0.00100001]
[1753278054366,1.22935586,117970.0,117960.0,0.00100001]
[1753278054575,0.8717458,117970.0,117960.0,0.00100001]
[1753278054721,1.22935586,117970.0,117960.0,0.00100001]
[1753278055682,0.8717458,117970.0,117960.0,0.00100001]
[1753278055817,1.22935586,117970.0,117960.0,0.00100001]
[1753278056635,0.8717458,117970.0,117960.0,0.00100001]
[1753278056836,1.22935586,117970.0,117960.0,0.00100001]
[1753278057054,1.37283586,117970.0,117960.0,1e-08]
[1753278057262,1.57283586,117970.0,117960.0,1e-08]
[1753278057470,1.2152258,117970.0,117960.0,1e-08]
[1753278057675,1.57283586,117970.0,117960.0,1e-08]
[1753278058702,1.42935586,117970.0,117960.0,1e-08]
[1753278059068,1.37935586,117970.0,117960.0,1e-08]
[1753278059275,1.0181085,117970.0,117960.0,1e-08]
[1753278059708,0.9364685,117970.0,117960.0,1e-08]
[1753278060005,1.43751856,117970.0,117960.0,1e-08]
[1753278060211,1.51448468,117970.0,117960.0,1e-08]
[1753278060618,1.15687462,117970.0,117960.0,1e-08]
[1753278060803,1.57199586,117970.0,117960.0,1e-08]
[1753278061416,1.93896198,117970.0,117960.0,1e-08]
[1753278061648,1.17651919,117950.0,117940.0,1e-08]
[1753278061854,1.82621655,117950.0,117940.0,1e-08]
[1753278062053,1.85632267,117950.0,117940.0,1e-08]
[1753278062256,1.55622377,117950.0,117940.0,1e-08]
[1753278062469,1.91383383,117950.0,117940.0,1e-08]
[1753278062908,1.32830649,117950.0,117940.0,1e-08]
[1753278063136,0.94650649,117950.0,117940.0,1e-08]
[1753278063278,0.91910649,117950.0,117940.0,1e-08]
[1753278064113,1.33901655,117950.0,117940.0,1e-08]
[1753278064575,1.51598267,117950.0,117940.0,1e-08]
[1753278064780,1.60045997,117950.0,117940.0,1e-08]
[1753278064981,1.65045997,117950.0,117940.0,1e-08]
[1753278065184,1.65868412,117950.0,117940.0,1e-08]
[1753278065598,1.712818,117950.0,117940.0,1e-08]
[1753278065803,1.15520794,117950.0,117940.0,1e-08]
[1753278066005,1.219418,117950.0,117940.0,1e-08]
[1753278066218,1.02758726,117950.0,117940.0,1e-08]
[1753278066888,0.72247726,117950.0,117940.0,0.03190001]
[1753278067097,0.63799996,117950.0,117940.0,0.06490001]
[1753278068373,1.00072002,117950.0,117940.0,0.06490001]
[1753278068591,1.00072002,117950.0,117940.0,1e-08]
[1753278068808,0.72758726,117950.0,117940.0,1e-08]
[1753278069017,0.72758843,117950.0,117940.0,1e-08]
[1753278069255,1.08519849,117950.0,117940.0,1e-08]
[1753278069877,1.08519845,117950.0,117940.0,1e-08]
[1753278070086,0.72758839,117950.0,117940.0,1e-08]
[1753278070762,1.08519845,117950.0,117940.0,1e-08]
[1753278070975,1.29169845,117950.0,117940.0,1e-08]
[1753278071184,1.44169845,117950.0,117940.0,1e-08]
[1753278071399,1.59169845,117950.0,117940.0,1e-08]
[1753278074241,0.33656665,117920.0,117910.0,0.27492754]
[1753278074482,0.41796425,117920.0,117910.0,0.27322754]
[1753278074673,0.41796425,117920.0,117910.0,0.12982754]
[1753278074888,0.41993425,117920.0,117910.0,0.12982754]
[1753278075101,0.41993425,117920.0,117910.0,0.06762754]
[1753278075102,0.42307425,117920.0,117910.0,0.06762754]
[1753278075517,0.42307425,117920.0,117910.0,0.06777442]
[1753278076478,0.3574571,117920.0,117910.0,0.08522344]
[1753278076680,0.3584571,117920.0,117910.0,0.11048125]
[1753278076891,0.3584571,117920.0,117910.0,0.10092754]
[1753278077109,0.3584571,117920.0,117910.0,0.13172754]
[1753278077321,0.3594571,117920.0,117910.0,0.13172754]
[1753278077526,0.38041849,117920.0,117910.0,0.13172754]
[1753278079663,0.37844849,117920.0,117910.0,0.13172754]
[1753278080731,0.37844849,117920.0,117910.0,0.27668754]
[1753278080938,0.38041849,117920.0,117910.0,0.27668754]
[1753278081140,0.1865983,117900.0,117890.0,0.0624]
[1753278081393,0.25300192,117900.0,117890.0,0.20756]
[1753278082250,0.25300192,117900.0,117890.0,0.0624]
[1753278082464,0.25300192,117900.0,117890.0,0.20752]
[1753278082880,0.65300192,117900.0,117890.0,0.20752]
[1753278083087,0.65300192,117900.0,117890.0,0.0634]
[1753278083292,0.65300192,117900.0,117890.0,0.20844]
[1753278083542,0.60337875,117900.0,117890.0,0.07388248]
[1753278083781,0.51061259,117900.0,117890.0,0.42294577]
[1753278083992,0.51909428,117900.0,117890.0,0.41446358]
[1753278084202,0.51909464,117900.0,117890.0,0.40598117]
[1753278084652,0.51909464,117900.0,117890.0,0.38841215]
[1753278084868,0.41678045,117900.0,117890.0,0.87339511]
[1753278085132,0.02526171,117900.0,117890.0,0.87339511]
[1753278085341,0.03374289,117900.0,117890.0,0.87339511]
[1753278085541,0.03374289,117900.0,117890.0,0.85594609]
[1753278085750,0.04222436,117900.0,117890.0,0.87339511]
[1753278086005,0.05070605,117900.0,117890.0,0.87339525]
[1753278086209,0.22882309,117900.0,117890.0,0.50730314]
[1753278086424,0.21186065,117900.0,117890.0,0.31220632]
[1753278086636,0.20337918,117900.0,117890.0,0.21016]
[1753278087063,0.20337918,117900.0,117890.0,0.38825215]
[1753278087303,0.19489749,117900.0,117890.0,0.38825208]
[1753278087526,0.03374361,117900.0,117890.0,0.40521625]
[1753278087748,0.20456146,117900.0,117890.0,0.39669427]
[1753278087951,0.02644485,117900.0,117890.0,0.40517632]
[1753278088155,0.00948133,117900.0,117890.0,0.4981356]
[1753278088369,0.001,117900.0,117890.0,0.4981356]
[1753278088592,0.00948118,117900.0,117890.0,0.9233732]
[1753278088802,0.01796251,117900.0,117890.0,0.4981356]
[1753278089015,0.02644398,117900.0,117890.0,0.83029944]
[1753278089226,0.18759844,117900.0,117890.0,0.2945573]
[1753278089431,0.18759844,117900.0,117890.0,0.1498773]
[1753278089432,0.21483892,117900.0,117890.0,0.1498773]
[1753278089637,0.21483892,117900.0,117890.0,0.20996]
[1753278090129,0.22004892,117900.0,117890.0,0.14752]
[1753278090339,0.22004892,117900.0,117890.0,0.003]
[1753278090340,0.86004892,117900.0,117890.0,0.003]
[1753278090569,0.86004892,117900.0,117890.0,0.14748]
[1753278091018,0.96035226,117900.0,117890.0,0.003]
[1753278091242,1.02375226,117900.0,117890.0,0.14748]
[1753278091457,1.02375226,117900.0,117890.0,0.003]
[1753278091882,0.733132,117890.0,117880.0,0.0002]
[1753278092092,1.06764264,117890.0,117880.0,0.0002]
[1753278092935,1.4252527,117890.0,117880.0,0.0002]
[1753278093808,1.06864264,117890.0,117880.0,0.0022]
[1753278094229,1.06764264,117890.0,117880.0,0.0002]
[1753278094647,0.91816534,117890.0,117880.0,0.0012]
[1753278094885,0.53916804,117890.0,117880.0,0.0012]
[1753278096320,1.1634554,117890.0,117880.0,0.0012]
[1753278096550,0.98148534,117890.0,117880.0,0.0012]
[1753278096809,1.3390954,117890.0,117880.0,0.0012]
[1753278097014,1.4235727,117890.0,117880.0,0.0012]
[1753278097444,1.06596264,117890.0,117880.0,0.0012]
[1753278097887,1.4235727,117890.0,117880.0,0.0012]
[1753278099207,0.92172264,117890.0,117880.0,0.0012]
[1753278099417,1.00224264,117890.0,117880.0,0.0012]
[1753278099634,0.92364534,117890.0,117880.0,0.0012]
[1753278100842,0.68395804,117890.0,117880.0,0.064]
[1753278101374,0.68603804,117890.0,117880.0,0.17516]
[1753278101619,0.68916804,117890.0,117880.0,0.14516]
[1753278101860,0.77364534,117890.0,117880.0,0.14516]
[1753278102374,0.77364534,117890.0,117880.0,0.0012]
[1753278104043,1.2812554,117890.0,117880.0,0.0012]
[1753278104292,1.5730327,117890.0,117880.0,0.0012]
[1753278105276,1.7230327,117890.0,117880.0,1e-08]
[1753278105748,1.36542264,117890.0,117880.0,1e-08]
[1753278106004,1.36542264,117890.0,117840.0,0.0002]
[1753278106005,0.18667746,117850.0,117840.0,0.0002]
[1753278106260,0.18667746,117850.0,117840.0,0.207]
[1753278106730,0.1951573,117850.0,117840.0,0.207]
[1753278107237,0.1961573,117850.0,117840.0,0.215]
[1753278107493,0.19630472,117850.0,117840.0,0.22136]
[1753278107934,0.19630472,117850.0,117840.0,0.077]
[1753278108142,0.19630472,117850.0,117840.0,0.22152]
[1753278108366,0.20151472,117850.0,117840.0,0.0142]
[1753278108585,0.7089335,117850.0,117840.0,0.0142]
[1753278109076,0.64181148,117850.0,117840.0,0.1622]
[1753278109294,0.63660148,117850.0,117840.0,0.1562]
[1753278109514,0.55212418,117850.0,117840.0,0.188]
[1753278109735,0.54151472,117850.0,117840.0,0.188]
[1753278110178,0.69151472,117850.0,117840.0,0.15872]
[1753278110397,0.77599202,117850.0,117840.0,0.15872]
[1753278110610,0.77599202,117850.0,117840.0,0.15888]
[1753278110824,0.79180976,117850.0,117840.0,0.15888]
[1753278111898,0.79180976,117850.0,117840.0,0.0082]
[1753278112421,0.79080976,117850.0,117840.0,0.15096]
[1753278112660,0.79180976,117850.0,117840.0,0.15196]
[1753278113142,0.79180976,117850.0,117840.0,0.0012]
[1753278113383,0.68630472,117850.0,117840.0,0.18448]
[1753278113632,0.83630472,117850.0,117840.0,0.18448]
[1753278113883,0.85211518,117850.0,117840.0,0.18448]
[1753278114305,0.83630472,117850.0,117840.0,0.21708]
[1753278114594,0.92078202,117850.0,117840.0,0.21708]
[1753278114832,0.92391202,117850.0,117840.0,0.21708]
[1753278115369,0.68630472,117850.0,117840.0,0.21708]
[1753278115606,0.34630472,117850.0,117840.0,0.21708]
[1753278115840,0.19630472,117850.0,117840.0,0.41225938]
[1753278116052,0.19630472,117850.0,117840.0,0.40377366]
[1753278116254,0.18781972,117850.0,117840.0,0.21708]
[1753278116442,0.22357224,117850.0,117840.0,0.21708]
[1753278116715,0.56357224,117850.0,117840.0,0.21708]
[1753278117208,0.56357224,117850.0,117840.0,0.0662]
[1753278117442,0.56885224,117850.0,117840.0,0.21724]
[1753278117655,0.56885224,117850.0,117840.0,0.15216]
[1753278117871,0.22885224,117850.0,117840.0,0.0012]
[1753278118294,0.22885224,117850.0,117840.0,0.15212]
[1753278118736,0.37885224,117850.0,117840.0,0.0012]
[1753278118976,0.52885224,117850.0,117840.0,0.0012]
[1753278119226,0.52885224,117850.0,117840.0,0.152]
[1753278119934,0.52885224,117850.0,117840.0,0.15204]
[1753278120159,0.52885224,117850.0,117840.0,0.15212]
[1753278121217,0.52885224,117850.0,117840.0,0.0012]
[1753278121402,0.61332954,117850.0,117840.0,0.15204]
[1753278121644,0.67842954,117850.0,117840.0,0.15204]
[1753278121861,0.61332954,117850.0,117840.0,0.15204]
[1753278122071,0.95332954,117850.0,117840.0,0.15204]
[1753278123464,1.32017027,117850.0,117840.0,0.15204]
[1753278123686,1.32017027,117850.0,117840.0,0.0012]
[1753278123968,1.03087916,117850.0,117840.0,0.15212]
[1753278124187,1.39771989,117850.0,117840.0,0.15212]
[1753278124411,1.01502954,117850.0,117840.0,0.0012]
[1753278124642,1.03087777,117850.0,117840.0,0.15216]
[1753278124867,1.38187027,117850.0,117840.0,0.15216]
[1753278125117,1.01502954,117850.0,117840.0,0.15216]
[1753278125327,1.39771674,117850.0,117840.0,0.15216]
[1753278125555,1.03087601,117850.0,117840.0,0.15216]
[1753278125782,1.39771674,117850.0,117840.0,0.15216]
[1753278125996,1.03087601,117850.0,117840.0,0.15216]
[1753278126210,1.39771674,117850.0,117840.0,0.15216]
[1753278126432,1.39771674,117850.0,117840.0,0.1522]
[1753278126858,1.39771674,117850.0,117840.0,0.0012]
[1753278127087,1.76455747,117850.0,117840.0,0.0012]
[1753278127287,1.39771674,117850.0,117840.0,1e-08]
[1753278127955,1.54771674,117850.0,117840.0,1e-08]